bitfinex/quotes_ETHUSD_20241216
["timestamp","ask_amount","ask_price","bid_price","bid_amount"]
[1734307202432,0.5165852,3956.8,3955.3,0.55]
[1734307202745,0.7918,3956.9,3955.3,0.55]
[1734307203078,0.7918,3956.9,3955.3,0.68007958]
[1734307203932,0.7918,3956.9,3955.3,1.01708859]
[1734307204134,1.29377068,3956.9,3955.3,1.52476922]
[1734307204437,1.29377068,3956.9,3955.3,1.01708859]
[1734307204647,1.29377068,3956.9,3955.3,4.01708859]
[1734307204978,0.7918,3956.9,3955.3,4.01708859]
[1734307205129,0.7918,3956.9,3955.5,0.55]
[1734307205832,0.7918,3956.9,3955.5,3.55]
[1734307206037,0.7853,3957.6,3955.5,3.55]
[1734307206252,0.7853,3957.6,3955.7,0.55]
[1734307206772,0.7853,3957.6,3956.0,0.50859018]
[1734307206984,0.7853,3957.6,3956.1,0.55]
[1734307207482,0.7853,3957.6,3956.0,0.50859018]
[1734307207483,0.7753,3958.5,3956.6,0.55]
[1734307207645,0.7753,3958.5,3956.8,0.55]
[1734307207849,0.7753,3958.5,3956.8,2.08]
[1734307209472,0.1655162,3958.6,3956.8,2.08]
[1734307209673,0.1655162,3958.6,3957.0,0.55]
[1734307210079,0.1655162,3958.6,3956.9,3.57857625]
[1734307210080,0.1655162,3958.6,3957.2,0.55]
[1734307210255,0.1655162,3958.6,3957.7,0.50292861]
[1734307210453,0.51060691,3959.4,3957.7,2.03292861]
[1734307210653,3.09153288,3959.4,3957.7,1.53]
[1734307210858,0.51060691,3959.4,3957.8,0.153]
[1734307211179,2.58092597,3959.9,3957.8,0.153]
[1734307211340,2.58092597,3959.9,3957.9,0.7758]
[1734307211535,2.58092597,3960.4,3957.9,1.28085024]
[1734307211763,2.58092597,3960.4,3958.0,0.59638502]
[1734307211983,0.5132337,3959.8,3958.1,1.53]
[1734307212136,2.58092597,3960.9,3958.1,1.53]
[1734307212337,2.58092597,3960.9,3958.3,0.55]
[1734307212573,0.8211,3960.8,3958.5,0.55]
[1734307212790,0.49312867,3960.4,3958.5,0.55]
[1734307212997,0.8211,3960.8,3959.2,1.53]
[1734307213277,0.8211,3960.8,3959.3,0.77]
[1734307213481,0.8211,3960.8,3959.5,1.53]
[1734307213777,0.51242545,3961.1,3960.0,0.55]
[1734307213992,0.8122,3961.3,3960.4,0.77]
[1734307214226,1.3077534,3961.8,3960.5,1.53]
[1734307214488,0.8122,3961.8,3961.0,1.53]
[1734307214701,0.1655162,3962.6,3961.0,1.53]
[1734307214702,0.8122,3961.2,3961.0,1.53]
[1734307215197,2.58092597,3961.3,3961.0,1.53]
[1734307215198,0.51651984,3961.1,3961.0,1.53]
[1734307215352,0.8122,3961.1,3961.0,1.53]
[1734307218761,0.55,3960.3,3957.0,0.8168]
[1734307218965,0.7915,3958.5,3957.0,0.8168]
[1734307219193,0.3372426,3958.4,3957.0,0.8168]
[1734307219397,0.7915,3958.5,3957.0,0.8168]
[1734307219398,0.7915,3958.5,3957.1,0.02526698]
[1734307219551,2.58092597,3959.7,3957.1,0.02526698]
[1734307219552,0.7668,3959.0,3957.1,0.02526698]
[1734307219755,0.7668,3959.0,3957.0,0.8168]
[1734307220309,0.7668,3959.0,3957.1,0.02526283]
[1734307220808,2.58092597,3958.7,3957.0,0.8168]
[1734307221011,0.2580926,3958.6,3957.0,0.8168]
[1734307221154,0.7668,3959.0,3957.1,0.02526667]
[1734307221354,0.7668,3959.0,3957.0,0.8168]
[1734307221813,0.7668,3959.0,3957.1,0.02526197]
[1734307221951,0.7668,3959.0,3957.2,0.02526197]
[1734307222301,0.7668,3959.0,3957.0,0.8168]
[1734307222512,0.7668,3959.0,3956.3,3.0]
[1734307222513,0.8279,3958.6,3956.6,0.7788]
[1734307224568,3.0,3960.0,3956.7,0.02526633]
[1734307224569,0.8279,3958.0,3956.7,0.02526633]
[1734307224769,0.8279,3958.7,3956.7,0.02526633]
[1734307224969,0.8279,3958.7,3956.8,0.7792]
[1734307225171,0.8279,3958.7,3956.9,0.02526289]
[1734307225380,0.8279,3958.7,3957.0,0.50487015]
[1734307225614,0.8279,3958.7,3957.1,0.15619479]
[1734307225793,0.8279,3958.7,3957.9,3.0]
[1734307226315,0.7789,3959.2,3958.0,0.55]
[1734307226603,0.7789,3960.2,3958.4,0.55]
[1734307226902,0.3359826,3960.1,3958.5,0.0252566]
[1734307227069,0.7789,3960.2,3959.0,0.55]
[1734307227272,0.04037361,3960.1,3959.0,0.55]
[1734307227665,0.04037361,3960.1,3958.6,0.8285]
[1734307227666,0.04037361,3960.1,3958.7,0.55]
[1734307227865,0.04037361,3960.1,3958.6,0.8285]
[1734307228283,0.04037361,3960.1,3958.7,0.57525525]
[1734307228582,0.7789,3960.2,3959.0,3.0]
[1734307228794,0.7789,3960.2,3958.7,0.55]
[1734307229012,3.39352597,3960.8,3958.7,0.55]
[1734307229216,3.65161857,3960.8,3959.4,3.0]
[1734307229400,1.0706926,3960.8,3958.9,0.55]
[1734307229610,0.8126,3960.8,3958.9,0.55]
[1734307229817,0.8126,3960.8,3959.4,3.0]
[1734307229971,0.8126,3960.8,3958.6,0.8285]
[1734307229972,3.39352597,3960.8,3958.6,0.8285]
[1734307230177,2.52554,3959.6,3957.9,0.759]
[1734307230523,0.8126,3959.4,3957.9,0.759]
[1734307230814,2.52554,3959.6,3957.9,0.759]
[1734307230987,2.52554,3959.6,3958.0,2.52651]
[1734307231586,2.58092597,3959.8,3958.0,0.55]
[1734307231811,0.2580926,3959.7,3958.4,3.0]
[1734307232122,2.58092597,3960.3,3958.5,0.02525709]
[1734307232303,2.58092597,3960.3,3958.0,0.55]
[1734307232304,2.58092597,3960.3,3958.2,3.0]
[1734307232475,3.08274341,3960.3,3958.0,0.55]
[1734307232678,2.52527,3960.0,3958.3,2.52633]
[1734307232882,2.58092597,3960.1,3957.9,0.759]
[1734307233124,0.252503,3960.3,3957.5,0.8042]
[1734307233125,2.52592,3959.0,3957.5,0.8042]
[1734307233327,2.58092597,3959.6,3957.5,0.8042]
[1734307233522,2.58092597,3959.6,3957.6,4.04476]
[1734307233523,0.2580926,3959.5,3957.6,4.04476]
[1734307233738,2.52616,3958.6,3957.5,0.8042]
[1734307233956,2.52616,3958.6,3956.1,2.04209589]
[1734307233957,2.58092597,3958.6,3957.0,0.8042]
[1734307234253,2.52623,3958.5,3957.0,0.8042]
[1734307234545,2.52623,3958.5,3957.0,3.33135]
[1734307234696,2.52623,3958.5,3957.1,0.38348334]
[1734307234901,2.58092597,3958.6,3957.1,0.38348334]
[1734307235310,2.58092597,3958.6,3957.1,2.91056334]
[1734307235615,5.10707597,3958.6,3957.2,3.0]
[1734307235796,2.58092597,3958.6,3957.2,0.55]
[1734307236003,0.7555,3959.0,3957.3,0.75174176]
[1734307236258,0.7555,3959.0,3958.0,3.0]
[1734307236406,0.7555,3959.0,3958.1,0.02526187]
[1734307236748,0.7555,3959.0,3957.8,3.0]
[1734307237044,0.7555,3959.0,3957.6,0.42764763]
[1734307237256,2.52608,3958.7,3957.6,0.51643666]
[1734307237540,3.28141,3959.0,3957.6,0.51643666]
[1734307237742,2.52605,3958.8,3957.6,0.51643666]
[1734307237905,0.328155,3958.7,3957.6,0.51643666]
[1734307238103,0.328155,3958.7,3957.2,3.0]
[1734307238349,2.52598,3958.9,3957.2,3.0]
[1734307238504,0.7555,3959.0,3957.2,3.0]
[1734307238505,0.7733,3958.4,3957.2,3.0]
[1734307238706,0.7733,3958.4,3957.0,0.8042]
[1734307238948,0.7733,3959.0,3957.1,0.02526862]
[1734307239147,0.7733,3959.0,3958.1,5.52642]
[1734307239353,0.8316,3959.5,3958.2,1.38720213]
[1734307239566,0.8316,3959.5,3958.4,2.52624]
[1734307239843,0.8316,3959.5,3958.2,1.361942]
[1734307239844,0.8316,3959.5,3958.3,0.50598063]
[1734307240347,2.52526,3960.0,3958.2,3.888302]
[1734307240558,0.8223,3960.4,3959.2,0.55]
[1734307240841,2.52437,3961.4,3959.2,3.07576]
[1734307241058,2.52437,3961.4,3959.4,0.55]
[1734307241219,0.5927596,3961.3,3959.6,2.52549]
[1734307241409,2.52469,3960.9,3960.0,0.49342752]
[1734307241605,2.52469,3960.9,3959.2,2.52575]
[1734307241858,0.8223,3961.0,3959.2,2.52575]
[1734307242032,0.5927766,3960.9,3959.9,0.51751563]
[1734307242407,2.52477,3960.8,3959.9,0.51751563]
[1734307242950,0.8178,3960.6,3959.9,0.51751563]
[1734307243151,3.3427,3960.6,3959.1,0.8155]
[1734307243309,0.8178,3960.6,3958.9,2.52593]
[1734307243647,2.52494,3960.5,3959.4,0.49287203]
[1734307243816,2.57645443,3960.2,3959.4,0.49287203]
[1734307244156,2.57645443,3959.7,3958.2,2.52639]
[1734307244322,5.10190443,3959.7,3958.1,0.7766]
[1734307244524,2.52554,3959.6,3958.1,1.106918]
[1734307244848,2.57645443,3958.2,3956.8,1.02104794]
[1734307245147,2.57645443,3958.2,3955.8,3.05287756]
[1734307245148,5.10325443,3957.6,3956.0,0.7601]
[1734307245320,2.57645443,3957.6,3956.0,0.7601]
[1734307245522,0.7925,3958.1,3957.0,2.52714]
[1734307245723,0.7925,3958.1,3957.1,2.52709]
[1734307246461,0.7925,3958.1,3956.8,2.52725]
[1734307246642,0.7925,3958.1,3956.5,2.55274702]
[1734307247119,0.7925,3958.1,3956.7,2.52731]
[1734307247454,0.7925,3958.1,3956.8,2.780011]
[1734307247726,0.7925,3958.1,3956.8,0.252731]
[1734307247885,0.7925,3958.1,3956.2,2.52763]
[1734307248084,2.52668,3957.8,3956.1,0.328795]
[1734307248248,2.52668,3957.8,3956.4,0.50198404]
[1734307248647,2.52668,3957.8,3956.2,0.3616665]
[1734307248648,2.52673,3957.7,3956.2,0.3616665]
[1734307248847,2.52673,3957.7,3956.0,0.7601]
[1734307249062,2.52673,3957.7,3956.3,0.51178427]
[1734307249265,0.7925,3958.1,3955.8,2.52791]
[1734307249437,0.7633,3957.3,3955.8,0.252791]
[1734307249638,3.29029,3957.3,3955.6,2.52804]
[1734307249883,3.29029,3957.3,3956.0,0.49425499]
[1734307250282,0.7633,3957.3,3956.0,0.49425499]
[1734307250577,0.7633,3957.3,3955.5,0.8312]
[1734307250778,2.52705,3957.2,3955.5,0.8312]
[1734307250948,0.329035,3957.2,3955.6,2.863984]
[1734307251135,0.329035,3957.2,3956.0,0.50193352]
[1734307251333,0.7633,3957.3,3956.0,0.50193352]
[1734307251788,0.7633,3957.3,3956.0,3.02971352]
[1734307251990,0.7633,3957.3,3956.1,2.52768]
[1734307254093,2.52739,3956.7,3955.0,3.3127]
[1734307254248,0.8104,3956.5,3955.0,1.29181038]
[1734307254442,3.71255117,3956.5,3955.7,0.51471423]
[1734307254774,3.71255117,3956.5,3954.1,3.54999794]
[1734307254775,2.52768,3956.2,3954.4,0.7843]
[1734307254976,2.52776,3956.1,3955.5,0.50922907]
[1734307255359,0.37125512,3956.4,3954.4,0.7843]
[1734307255574,0.8104,3956.3,3954.4,0.7843]
[1734307255775,0.37125512,3956.4,3953.8,0.7843]
[1734307255776,0.8104,3955.4,3953.8,0.7843]
[1734307255976,0.8104,3955.4,3954.4,0.50028548]
[1734307256149,2.90215117,3955.3,3954.4,0.50028548]
[1734307256348,2.90215117,3955.3,3953.3,0.7843]
[1734307256586,3.27340629,3955.3,3953.4,2.52941]
[1734307256949,0.37125512,3955.3,3953.9,0.49669793]
[1734307257189,0.8104,3955.4,3954.0,2.52906]
[1734307257385,0.8104,3955.4,3953.9,0.49669793]
[1734307257386,0.8104,3955.4,3954.1,0.30257579]
[1734307257567,0.8212,3956.2,3954.5,2.52874]
[1734307257763,0.8212,3956.2,3954.2,0.7798]
[1734307257764,0.8212,3956.2,3954.6,2.52868]
[1734307258464,0.8212,3956.2,3954.4,2.52882]
[1734307258794,0.8212,3956.2,3954.3,0.55]
[1734307259040,0.8212,3956.2,3954.2,3.7798]
[1734307259041,1.19353512,3956.2,3954.2,0.7798]
[1734307259318,2.90215117,3955.9,3954.4,2.52881]
[1734307259485,2.90215117,3955.9,3954.5,2.52875]
[1734307259867,2.90215117,3955.9,3954.5,0.51150287]
[1734307259868,5.43002117,3955.9,3954.5,0.51150287]
[1734307260073,0.8135,3955.7,3954.5,0.51150287]
[1734307260433,2.52815,3955.5,3953.8,2.52918]
[1734307260714,2.52823,3955.4,3953.1,2.5296]
[1734307260917,2.52823,3955.4,3953.4,2.52944]
[1734307260918,0.7537,3955.0,3953.4,2.52944]
[1734307261133,0.7537,3955.0,3953.2,0.7524]
[1734307261473,0.7537,3955.0,3954.1,0.50420847]
[1734307261910,1.07950627,3955.0,3954.1,0.50420847]
[1734307262929,3.60796627,3955.0,3954.1,0.50420847]
[1734307263130,2.90215117,3954.6,3952.2,0.7924]
[1734307263284,0.7891,3953.8,3952.2,3.32261]
[1734307263479,3.31833,3953.8,3952.2,0.7924]
[1734307263678,0.7891,3953.8,3952.4,2.53009]
[1734307263984,0.7891,3953.8,3951.2,0.74179479]
[1734307263985,2.52929,3953.7,3952.5,0.332249]
[1734307264219,0.7891,3953.8,3952.3,0.50840431]
[1734307264697,3.31832,3953.8,3952.3,0.50840431]
[1734307265028,0.7891,3953.8,3952.3,3.03854431]
[1734307265178,0.7891,3953.8,3952.4,0.30385443]
[1734307265378,0.7891,3953.8,3952.3,0.50840431]
[1734307265628,2.90215117,3953.3,3952.3,0.50840431]
[1734307265831,0.802,3953.2,3950.9,0.02530337]
[1734307266038,0.802,3953.2,3952.1,2.53026]
[1734307266336,0.8145,3955.0,3952.2,0.8241]
[1734307266573,0.8145,3955.0,3952.2,0.84939918]
[1734307266854,0.8145,3954.3,3953.0,0.49409801]
[1734307267034,2.52903,3954.1,3952.5,0.12421959]
[1734307267235,2.52908,3954.0,3952.7,0.51411671]
[1734307267421,0.8145,3953.9,3952.7,0.51411671]
[1734307267619,2.90215117,3953.0,3952.5,0.12421959]
[1734307267829,1.04651512,3952.9,3952.5,0.12421959]
[1734307268146,1.04651512,3952.9,3951.6,0.12823235]
[1734307268147,0.7563,3952.9,3951.6,0.12823235]
[1734307268348,0.7563,3952.9,3951.8,0.50251205]
[1734307269449,0.7563,3952.9,3951.8,3.50251205]
[1734307269951,0.7611,3954.1,3952.3,2.53017]
[1734307270154,0.7611,3954.6,3953.1,0.8234]
[1734307270304,0.7611,3954.6,3952.8,0.5119686]
[1734307270506,0.7611,3954.6,3952.9,2.52978]
[1734307270705,0.7611,3954.6,3952.8,0.5119686]
[1734307271101,0.7611,3954.6,3952.9,2.52978]
[1734307271301,0.7611,3954.6,3952.8,0.5119686]
[1734307271735,0.7611,3954.6,3953.0,3.0]
[1734307271935,2.90215117,3955.3,3954.1,2.529]
[1734307272211,2.52852,3954.9,3953.1,0.40872639]
[1734307272445,2.5286,3954.8,3953.2,2.52957]
[1734307272651,2.52858,3954.8,3953.3,0.51636817]
[1734307272948,0.37034512,3955.0,3953.3,0.51636817]
[1734307273151,0.8013,3954.2,3953.2,0.12868189]
[1734307273461,2.52915,3953.9,3952.6,0.12730945]
[1734307273606,0.54313012,3953.8,3952.6,0.12730945]
[1734307274205,3.07237012,3953.8,3952.6,0.12730945]
[1734307274405,0.8013,3954.2,3952.7,0.02529707]
[1734307274651,5.52841,3955.1,3953.5,2.52937]
[1734307274950,0.7666,3954.9,3953.5,2.52936]
[1734307275351,0.7666,3954.9,3953.6,0.50319934]
[1734307275565,0.7666,3954.9,3954.0,2.52907]
[1734307276059,0.7666,3954.9,3953.7,2.52924]
[1734307276357,2.52751,3956.5,3953.7,2.52924]
[1734307276358,2.52779,3956.1,3954.4,2.5288]
[1734307276509,0.75218809,3957.2,3953.8,0.60324393]
[1734307276510,2.90215117,3955.8,3953.8,0.60324393]
[1734307276709,2.90215117,3955.8,3953.7,0.7524]
[1734307276941,0.782,3955.1,3953.2,3.79436174]
[1734307277211,2.52896,3954.2,3953.3,0.12491498]
[1734307277510,2.52896,3954.2,3952.7,2.52988]
[1734307277511,1.034896,3954.1,3952.7,2.52988]
[1734307277707,0.782,3954.1,3952.8,2.52984]
[1734307278209,0.782,3954.1,3952.6,1.2472565]
[1734307278550,0.782,3954.1,3952.9,2.52977]
[1734307278736,0.782,3954.1,3952.9,0.37770265]
[1734307279229,3.31103,3954.1,3953.0,0.12944917]
[1734307279545,0.782,3954.1,3953.0,0.12944917]
[1734307279922,3.31102,3954.1,3953.0,0.12944917]
[1734307280175,0.782,3954.1,3952.1,2.53024]
[1734307280455,2.90215117,3954.6,3952.2,0.328264]
[1734307280670,0.782,3955.8,3953.2,0.7524]
[1734307280812,0.782,3955.8,3954.4,2.52877]
[1734307281219,0.782,3955.8,3954.6,2.5287]
[1734307281714,0.782,3955.8,3954.7,0.02528416]
[1734307281914,0.782,3955.8,3954.7,0.35249277]
[1734307282155,2.90215117,3957.1,3954.6,3.07868]
[1734307282156,0.8193,3957.0,3954.6,3.07868]
[1734307282452,2.52743,3956.6,3954.9,2.52845]
[1734307282659,1.072043,3956.5,3954.9,2.52845]
[1734307282876,3.599543,3956.5,3954.9,2.52845]
[1734307283151,3.599543,3956.5,3954.1,3.8204]
[1734307283152,0.8193,3956.5,3954.1,3.8204]
[1734307283362,0.7891,3956.3,3954.1,0.8204]
[1734307283659,2.52795,3955.8,3954.2,2.52895]
[1734307284008,0.7891,3956.1,3954.6,0.12826087]
[1734307284216,2.52809,3955.6,3954.6,0.12826087]
[1734307284415,2.90215117,3956.3,3954.7,0.25]
[1734307284649,2.52788,3955.9,3954.7,0.25]
[1734307284869,2.52788,3955.9,3954.1,6.34936]
[1734307284870,2.528,3955.7,3954.4,0.5]
[1734307285156,0.252788,3955.8,3954.4,0.25]
[1734307285356,2.52807,3955.6,3954.4,0.25]
[1734307285918,2.90215117,3955.7,3954.1,0.25]
[1734307286263,2.81827512,3955.6,3953.9,0.5]
[1734307286558,2.52847,3955.0,3953.9,0.5]
[1734307286870,0.29021512,3955.6,3953.9,0.5]
[1734307286871,0.29021512,3955.6,3953.9,0.25]
[1734307287017,2.90215117,3955.0,3953.1,0.25]
[1734307287223,0.2116,3954.1,3953.2,0.25]
[1734307287633,0.2116,3954.1,3953.1,0.25]
[1734307287870,0.2116,3954.1,3953.2,0.25]
[1734307288166,0.2116,3954.1,3952.9,0.5]
[1734307288959,2.52908,3954.0,3952.9,0.5]
[1734307289167,0.2116,3954.1,3952.9,0.5]
[1734307289468,2.52929,3953.7,3952.9,0.25]
[1734307289966,0.2116,3954.1,3952.9,0.25]
[1734307290621,0.2116,3954.1,3953.0,0.35476016]
[1734307290822,0.2116,3954.1,3952.9,0.25]
[1734307291131,2.52919,3953.9,3952.9,0.25]
[1734307291335,2.52919,3953.9,3952.8,0.25]
[1734307291541,0.2116,3954.1,3952.7,0.51772163]
[1734307291723,2.52942,3953.5,3952.7,0.51772163]
[1734307291918,0.2116,3953.9,3952.7,0.51772163]
[1734307292122,3.0,3954.8,3951.5,1.02104794]
[1734307292123,0.55,3953.5,3951.6,0.25]
[1734307292378,2.53005,3952.5,3952.1,0.49933618]
[1734307292651,3.55,3953.7,3952.1,0.49933618]
[1734307292652,2.53019,3952.3,3952.1,0.49933618]
[1734307292859,0.2116,3952.4,3952.1,0.49933618]
[1734307293057,0.2116,3953.5,3952.1,0.49933618]
[1734307293468,2.52951,3953.4,3952.3,0.25]
[1734307293764,0.2116,3953.5,3952.1,0.49933618]
[1734307293983,0.55,3953.4,3952.1,0.49933618]
[1734307294267,0.2116,3952.7,3952.1,0.49933618]
[1734307294768,2.90215117,3953.8,3952.1,0.49933618]
[1734307294769,0.2116,3953.6,3952.7,0.25]
[1734307295128,0.2116,3954.2,3952.9,0.25]
[1734307295333,0.2116,3954.2,3953.4,0.25]
[1734307295730,0.2116,3954.2,3953.2,0.25]
[1734307295931,2.74057,3954.2,3953.0,0.5]
[1734307296695,2.74057,3954.2,3953.0,0.25]
[1734307296897,0.485657,3954.2,3952.6,0.25]
[1734307297067,0.485657,3954.2,3952.5,0.25]
[1734307297269,0.485657,3954.2,3952.4,9.14]
[1734307297270,0.55,3954.1,3952.4,8.89]
[1734307297513,0.485657,3954.2,3952.6,0.5]
[1734307297514,3.2116,3953.7,3952.6,0.5]
[1734307297812,2.52935,3953.6,3952.6,0.25]
[1734307297960,2.52935,3953.6,3952.4,9.88727]
[1734307298158,2.52945,3953.5,3952.4,9.88727]
[1734307298605,0.2116,3953.7,3952.8,0.25]
[1734307299156,2.74088,3953.7,3952.5,1.121997]
[1734307299458,0.2116,3953.7,3952.6,0.25]
[1734307299663,0.2116,3953.7,3952.6,1.6344697]
[1734307299982,0.2116,3954.2,3953.0,0.25]
[1734307300155,0.2116,3954.9,3953.4,0.5]
[1734307300391,2.52858,3954.8,3953.4,0.5]
[1734307300558,0.2116,3954.9,3953.6,0.25]
[1734307300794,2.5287,3954.6,3953.6,0.25]
[1734307300996,2.52904,3954.1,3953.1,0.5]
[1734307301204,0.252904,3954.1,3953.2,0.25]
[1734307301369,2.5289,3954.3,3953.1,0.25]
[1734307301572,2.52897,3954.2,3953.1,0.25]
[1734307301904,0.2116,3954.1,3952.5,0.25]
[1734307302105,0.2116,3953.6,3951.9,1.02104794]
[1734307302262,2.52953,3953.3,3952.0,0.25]
[1734307302684,2.52953,3953.3,3951.9,0.25]
[1734307302909,3.2116,3953.6,3952.0,0.25]
[1734307303114,0.55,3953.4,3951.7,0.25]
[1734307303316,2.74113,3953.3,3951.6,0.7844]
[1734307303635,2.53005,3952.5,3951.6,0.7844]
[1734307303985,2.53005,3952.5,3951.4,0.5]
[1734307304185,3.55,3953.4,3951.4,0.5]
[1734307304186,0.2116,3952.4,3951.4,0.25]
[1734307304501,0.2116,3952.4,3951.2,0.7844]
[1734307304832,0.2116,3952.4,3951.2,1.0344]
[1734307304989,2.74171,3952.4,3951.2,0.7844]
[1734307305190,2.53019,3952.3,3951.2,1.0344]
[1734307305589,2.53019,3952.3,3951.2,0.7844]
[1734307305894,2.53025,3952.2,3951.2,1.0344]
[1734307306287,2.53025,3952.2,3951.2,0.7844]
[1734307306490,2.53025,3952.2,3951.2,1.0344]
[1734307307438,2.53025,3952.2,3951.2,0.7844]
[1734307307729,0.274185,3952.2,3951.2,0.7844]
[1734307307960,0.274185,3952.2,3950.8,0.5]
[1734307307961,2.53054,3951.8,3950.9,0.49446046]
[1734307308239,2.53017,3952.3,3950.8,0.25]
[1734307308240,0.55,3952.3,3950.8,0.25]
[1734307308433,2.53068,3951.6,3950.8,0.25]
[1734307308888,2.53068,3951.6,3950.8,1.00579248]
[1734307309087,2.53068,3951.6,3950.8,0.75579248]
[1734307309523,3.09462212,3952.2,3950.8,0.75579248]
[1734307309524,2.53071,3951.5,3950.8,0.75579248]
[1734307309702,0.56439212,3952.2,3950.4,0.25]
[1734307309703,2.53085,3951.3,3950.4,0.25]
[1734307310036,2.53069,3951.5,3950.4,0.25]
[1734307310240,2.53077,3951.4,3950.4,0.25]
[1734307310440,2.90215117,3951.2,3950.2,0.50569302]
[1734307310743,2.90215117,3951.2,3949.7,0.25]
[1734307310891,2.53112,3950.9,3949.8,0.25]
[1734307311588,2.90215117,3951.2,3949.8,0.25]
[1734307311589,5.43307117,3951.2,3949.8,0.25]
[1734307311835,2.53102,3951.0,3949.7,0.25]
[1734307312038,2.52763084,3951.6,3950.1,0.25]
[1734307312334,0.2116,3952.8,3950.9,0.25]
[1734307312631,0.2116,3952.8,3951.2,0.25]
[1734307312794,2.53011,3952.4,3951.2,0.25]
[1734307312994,0.31137512,3952.7,3951.0,0.25]
[1734307312995,2.53034,3952.1,3951.0,0.25]
[1734307313190,2.52998,3952.6,3951.1,0.25]
[1734307313407,0.84849163,3952.6,3951.1,0.25]
[1734307313608,0.2116,3952.8,3951.1,0.25]
[1734307313810,3.0,3952.6,3951.2,0.25]
[1734307314038,3.2116,3952.8,3951.2,0.25]
[1734307314612,5.74146,3952.8,3951.7,0.8189]
[1734307314811,0.2116,3953.3,3951.8,0.25]
[1734307315035,0.2116,3953.3,3951.7,0.8189]
[1734307315235,2.52992,3952.7,3951.7,0.8189]
[1734307316053,2.74119,3953.3,3951.7,0.8189]
[1734307316054,0.2116,3953.3,3951.7,0.8189]
[1734307316251,0.2116,3952.6,3951.3,0.816]
[1734307316483,2.53039,3952.0,3951.3,0.816]
[1734307316689,2.53005,3952.5,3951.3,0.816]
[1734307316690,2.5303,3952.1,3951.3,0.816]
[1734307316909,3.55,3952.5,3951.3,0.816]
[1734307317089,0.55,3952.3,3951.3,0.816]
[1734307317387,2.53035,3952.1,3951.3,0.816]
[1734307318350,2.53019,3952.3,3951.3,0.816]
[1734307318655,0.629162,3952.4,3951.3,0.816]
[1734307318656,3.0,3952.4,3951.3,0.816]
[1734307318852,0.15937245,3954.4,3951.3,0.816]
[1734307319173,0.70449041,3955.0,3951.8,0.25]
[1734307319174,2.52988,3952.8,3951.8,0.25]
[1734307319391,0.2116,3953.2,3951.5,0.25]
[1734307319607,0.274114,3953.1,3951.5,0.25]
[1734307319950,2.53031,3952.1,3951.3,0.816]
[1734307320427,2.91145667,3952.9,3950.9,0.7503]
[1734307320428,2.74187,3952.2,3950.9,0.7503]
[1734307320574,2.53049,3951.9,3950.9,0.7503]
[1734307320774,2.53056,3951.7,3950.9,0.7503]
[1734307321425,2.53056,3951.7,3950.8,0.25]
[1734307321426,0.55,3952.1,3950.5,0.7503]
[1734307321738,0.55,3951.6,3950.5,0.7503]
[1734307322031,2.53098,3951.1,3950.5,0.7503]
[1734307322691,3.2068894,3951.6,3950.5,0.7503]
[1734307322692,5.1875294,3951.6,3950.5,0.7503]
[1734307322871,2.53069,3951.5,3950.5,1.128481]
[1734307323084,2.53069,3951.5,3950.5,0.7503]
[1734307323498,2.6568894,3951.6,3950.5,0.7503]
[1734307323887,2.53075,3951.4,3950.5,0.7503]
[1734307324095,2.53081,3951.3,3950.5,0.7503]
[1734307324492,2.6568894,3951.6,3950.5,0.7503]
[1734307324493,2.53094,3951.1,3950.5,0.7503]
[1734307324726,2.6568894,3951.6,3950.5,0.7503]
[1734307325128,3.17563234,3951.6,3950.5,0.7503]
[1734307325331,3.08068,3951.5,3950.5,0.7503]
[1734307325553,2.53115,3950.8,3950.5,0.7503]
[1734307326195,2.53088,3951.2,3950.5,1.0003]
[1734307326591,3.17563234,3951.6,3950.5,1.0003]
[1734307326796,2.84824323,3951.5,3950.5,0.7503]
[1734307326990,0.2116,3951.2,3950.1,0.753]
[1734307327304,2.53113,3950.8,3950.1,1.003]
[1734307327505,2.53097,3951.1,3950.1,1.253]
[1734307327707,2.53097,3951.1,3950.4,0.25]
[1734307327909,0.31756323,3951.5,3950.1,1.003]
[1734307328110,2.5312,3950.7,3950.1,1.003]
[1734307328323,2.531,3951.0,3950.1,1.003]
[1734307328537,2.53115,3950.8,3950.1,0.25]
[1734307329799,2.53127,3950.6,3950.1,0.25]
[1734307330108,0.253127,3950.6,3949.7,1.0477]
[1734307330293,2.53153,3950.2,3949.7,1.0477]
[1734307331135,2.53138,3950.5,3949.7,1.0477]
[1734307331297,2.53141,3950.4,3949.7,1.0477]
[1734307331905,2.6568894,3950.6,3949.1,3.0]
[1734307331906,1.06882994,3950.3,3949.1,0.7503]
[1734307332096,2.6568894,3950.6,3949.1,0.7503]
[1734307332097,2.53176,3949.9,3949.1,0.7503]
[1734307332302,3.55,3950.5,3949.1,0.7503]
[1734307332545,2.53191,3949.6,3949.1,0.7503]
[1734307333428,2.6568894,3950.1,3949.1,0.7503]
[1734307333429,2.53165,3950.0,3949.1,0.7503]
[1734307333752,2.53204,3949.4,3948.9,0.25]
[1734307333961,2.53204,3949.4,3948.9,0.5]
[1734307334121,2.53204,3949.4,3948.8,0.5]
[1734307334306,2.6568894,3950.1,3948.8,0.5]
[1734307334307,2.53186,3949.7,3948.8,0.5]
[1734307334654,2.53153,3950.2,3949.5,0.25]
[1734307335145,2.53153,3950.2,3949.4,1.0122]
[1734307335146,2.53185,3949.7,3949.4,0.25]